fUST/lending_fUST_20251111
["ID","MTS","AMOUNT","RATE_DAILY","PERIOD"]
[393601764,1762841605301,-202.10826479,0.0001657,2]
[393601765,1762841606445,-10000.01,0.0001657,2]
[393601766,1762841609513,-10000.01,0.0001657,2]
[393601767,1762841609616,-10000.01,0.0001657,2]
[393601768,1762841609721,-10000.01,0.0001657,2]
[393601769,1762841609851,-10000.01,0.0001657,2]
[393601770,1762841609956,-10000.01,0.0001657,2]
[393601771,1762841610071,-10000.01,0.0001657,2]
[393601772,1762841610191,-10000.01,0.0001657,2]
[393601773,1762841610303,-10000.01,0.0001657,2]
[393601774,1762841610431,-10000.01,0.0001657,2]
[393601775,1762841610520,-210.60206046,0.0001657,2]
[393601776,1762841616888,-299.0,0.0001657,2]
[393601777,1762841619844,-252.37889118,0.0001657,2]
[393601778,1762841629923,-312.77351553,0.00016569,2]
[393601779,1762841644080,-300.0,0.00016569,2]
[393601780,1762841644105,-42.57316652,0.00016569,2]
[393601781,1762841647013,-144.65331795,0.00016569,2]
[393601782,1762841647038,-185.76817319,0.00016569,2]
[393601783,1762841649853,-304.73667405,0.00016569,2]
[393601784,1762841651473,-24.6337239,0.00016569,2]
[393601785,1762841651500,-163.97415548,0.00016569,2]
[393601786,1762841653141,-154.87352043,0.00016569,2]
[393601787,1762841656046,-181.15232409,0.00016569,2]
[393601788,1762841656070,-77.96515908,0.0001657,2]
[393601789,1762841659974,-151.0,0.0001657,2]
[393601790,1762841663531,-305.75246421,0.0001657,2]
[393601791,1762841666984,-399.71080467,0.0001657,2]
[393601792,1762841670950,-306.42106531,0.0001657,2]
[393601793,1762841673189,-386.24495282,0.0001657,2]
[393601794,1762841674880,-249.81812272,0.0001657,2]
[393601795,1762841676891,-218.14480684,0.0001657,2]
[393601796,1762841679259,-208.28717155,0.0001657,2]
[393601797,1762841680901,-311.03580477,0.0001657,2]
[393601799,1762841682411,10000.01,0.0001647,2]
[393601801,1762841692563,-201.59698138,0.0001647,2]
[393601803,1762841694799,-329.66895012,0.0001647,2]
[393601804,1762841696463,-243.31478545,0.0001647,2]
[393601805,1762841698176,-197.99063882,0.0001647,2]
[393601806,1762841699878,-161.20593704,0.0001647,2]
[393601807,1762841702277,-231.43998015,0.00016469,2]
[393601808,1762841705272,-68.56001985,0.00016469,2]
[393601809,1762841705299,-223.08686175,0.0001647,2]
[393601810,1762841706862,-226.5880084,0.0001647,2]
[393601811,1762841710863,-352.30095932,0.0001647,2]
[393601812,1762841727472,-155.26839453,0.0001647,2]
[393601813,1762841730401,-321.37408128,0.0001647,2]
[393601814,1762841733147,-248.73848931,0.0001647,2]
[393601815,1762841735179,-336.0766321,0.0001647,2]
[393601816,1762841736756,-246.63467872,0.0001647,2]
[393601817,1762841738219,-210.63514649,0.0001647,2]
[393601818,1762841741514,-272.8040941,0.0001647,2]
[393601819,1762841743650,-248.85818608,0.0001647,2]
[393601820,1762841746348,-362.06975518,0.0001647,2]
[393601821,1762841749768,-186.68139984,0.0001647,2]
[393601822,1762841754207,-404.79471752,0.0001647,2]
[393601823,1762841758069,-244.72656509,0.0001647,2]
[393601824,1762841760080,-158.4275656,0.0001647,2]
[393601825,1762841762276,-199.44538982,0.0001647,2]
[393601827,1762841763899,-229.22381046,0.00016469,2]
[393601828,1762841766615,-70.77618954,0.00016469,2]
[393601829,1762841766649,-170.09405565,0.0001647,2]
[393601830,1762841768238,-380.50115927,0.0001647,2]
[393601831,1762841770952,-255.27343491,0.0001647,2]
[393601832,1762841786773,-511.18847566,0.0001647,2]
[393601833,1762841790356,-158.86447604,0.0001647,2]
[393601834,1762841794352,-173.38392685,0.00016469,2]
[393601835,1762841797024,-36.85266454,0.00016469,2]
[393601836,1762841797051,-288.26775103,0.00016469,2]
[393601837,1762841799179,-211.73224897,0.00016469,2]
[393601838,1762841799205,-19.56877845,0.00016469,2]
[393601839,1762841802092,-370.87934228,0.00016469,2]
[393601840,1762841805327,-109.55187927,0.00016469,2]
[393601841,1762841805350,-181.54682106,0.00016469,2]
[393601842,1762841806903,-309.7072065,0.00016469,2]
[393601843,1762841809358,-8.74597244,0.00016469,2]
[393601844,1762841809386,-285.98563303,0.00016469,2]
[393601845,1762841810940,-214.01436697,0.00016469,2]
[393601846,1762841810964,-4.25597695,0.00016469,2]
[393601847,1762841813869,-227.76804493,0.00016469,2]
[393601848,1762841815443,-267.97597812,0.00016469,2]
[393601849,1762841815475,-72.64060228,0.00016469,2]
[393601850,1762841819937,-145.02309706,0.00016469,2]
[393601851,1762841819967,-63.97084768,0.00016469,2]
[393601852,1762841822948,-155.5769751,0.00016468,2]
[393601853,1762841825292,-144.4230249,0.00016468,2]
[393601854,1762841825319,-45.04018604,0.00016469,2]
[393601855,1762841827516,-319.1782403,0.00016469,2]
[393601856,1762841829782,-313.47608854,0.00016469,2]
[393601857,1762841846758,-291.34857518,0.00016469,2]
[393601858,1762841848612,-300.0,0.00016469,2]
[393601859,1762841850946,-527.65142482,0.00016469,2]
[393601860,1762841854961,-160.0,0.00016469,2]
[393601863,1762841856992,-119.97915489,0.00016469,2]
[393601864,1762841857016,-39.19621885,0.00016469,2]
[393601865,1762841858756,-32.61450713,0.00016469,2]
[393601866,1762841858784,-159.72962172,0.00016469,2]
[393601867,1762841861296,-277.96177954,0.00016469,2]
[393601868,1762841861398,169.590313,8.973e-05,2]
[393601869,1762841863486,-62.30859874,0.00016469,2]
[393601870,1762841863510,-237.69140126,0.00016469,2]
[393601871,1762841865826,-300.0,0.00016469,2]
[393601872,1762841869447,-87.84868019,0.00016469,2]
[393601873,1762841869474,-94.08104441,0.00016469,2]
[393601874,1762841871143,-239.14571775,0.00016469,2]
[393601875,1762841874436,-166.77323784,0.00016469,2]
[393601876,1762841874460,-146.34569333,0.00016469,2]
[393601877,1762841892498,-248.04751013,0.00016468,2]
[393601878,1762841894206,-51.95248987,0.00016468,2]
[393601879,1762841894231,-276.28570267,0.00016469,2]
[393601880,1762841898104,-190.83212534,0.00016469,2]
[393601881,1762841898128,-77.368604,0.00016469,2]
[393601882,1762841898151,-5.12255967,0.00016469,2]
[393601883,1762841899701,-181.17693615,0.00016469,2]
[393601884,1762841904301,-189.38729653,0.00016469,2]
[393601885,1762841907039,-124.31320765,0.00016469,2]
[393601886,1762841907062,-95.12556085,0.00016469,2]
[393601887,1762841912449,-151.0,0.00016469,2]
[393601888,1762841915892,-0.6398766,0.00016469,2]
[393601889,1762841915919,-385.12177076,0.00016469,2]
[393601890,1762841920420,-114.87822924,0.00016469,2]
[393601891,1762841920444,-67.23026986,0.00016469,2]
[393601892,1762841937316,-275.09818743,0.00016469,2]
[393601893,1762841938981,-157.67154271,0.00016469,2]
[393601894,1762841939004,-187.23727241,0.00016469,2]
[393601895,1762841941290,-185.69133198,0.00016469,2]
[393601896,1762841963132,-127.07139561,0.00016469,2]
[393601897,1762841963156,-178.29094354,0.00016469,2]
[393601898,1762841965842,-213.3638526,0.00016469,2]
[393601899,1762841968533,-200.81303965,0.0001611,2]
[393601900,1762841970689,-155.50179157,0.0001611,2]
[393601901,1762841973102,-215.75036845,0.0001611,2]
[393601902,1762842008173,-185.48865006,0.0001611,2]
[393601903,1762842010318,-180.60251544,0.0001611,2]
[393601904,1762842013136,-300.0,0.0001611,2]
[393601905,1762842020882,666.0911655,0.0001611,2]
[393601906,1762842118249,776.62739898,0.0001601,2]
[393601907,1762842203749,-194.71574966,0.0001611,2]
[393601908,1762842206849,-300.04711574,0.0001611,2]
[393601909,1762842211396,-223.15431032,0.0001611,2]
[393601910,1762842217749,717.91717572,0.0001611,2]
[393601911,1762842294507,-45.74645911,0.0001611,2]
[393601912,1762842294529,-187.01548283,0.00016255,2]
[393601913,1762842294552,-128.7037359,0.00016373,2]
[393601914,1762842296692,-355.26784596,0.00016373,2]
[393601955,1762842511814,559.565602,0.0001547,2]
[393601956,1762842529904,999.0,0.0001547,2]
[393602013,1762842637911,-1953.20815841,0.00016373,2]
[393602372,1762842641785,-61.57263898,0.00016373,2]
[393602374,1762842641800,-4595.41440788,0.00016373,2]
[393602376,1762842641810,-1200.0,0.00016399,2]
[393602378,1762842641819,-206.38471305,0.000164,2]
[393602380,1762842641828,-206.38471303,0.000164,2]
[393602382,1762842641839,-206.38471303,0.000164,2]
[393602384,1762842641848,-183.27517317,0.00016434,2]
[393602386,1762842641858,-300.0,0.00016466,2]
[393602388,1762842641874,-1527.30504002,0.00016469,2]
[393602390,1762842641889,-108.34520386,0.00016469,2]
[393602392,1762842641898,-500.0,0.00016469,2]
[393602394,1762842641908,-500.0,0.00016469,2]
[393602396,1762842641918,-500.0,0.00016469,2]
[393602398,1762842641927,-500.0,0.00016469,2]
[393602400,1762842641938,-500.0,0.00016469,2]
[393602403,1762842641948,-500.0,0.00016469,2]
[393602405,1762842641960,-500.0,0.00016469,2]
[393602407,1762842641970,-500.0,0.00016469,2]
[393602409,1762842641980,-378.847955,0.00016469,2]
[393602411,1762842641990,-500.0,0.00016469,2]
[393602413,1762842642000,-157.00222622,0.00016469,2]
[393602415,1762842642010,-500.0,0.00016469,2]
[393602416,1762842642020,-500.0,0.00016469,2]
[393602419,1762842642030,-500.0,0.00016469,2]
[393602421,1762842642040,-500.0,0.00016469,2]
[393602423,1762842642050,-488.46162114,0.00016469,2]
[393602425,1762842642060,-500.0,0.00016469,2]
[393602427,1762842642070,-266.60095376,0.00016469,2]
[393602429,1762842642079,-499.99999999,0.00016469,2]
[393602431,1762842642089,-166.73451897,0.00016469,2]
[393602433,1762842642098,-500.0,0.00016469,2]
[393602435,1762842642107,-500.0,0.00016469,2]
[393602436,1762842642117,-500.0,0.00016469,2]
[393602438,1762842642128,-1000.0,0.0001647,2]
[393602440,1762842642138,-1022.435731,0.0001647,2]
[393602442,1762842642147,-1012.16791234,0.0001647,2]
[393602444,1762842642157,-151.0,0.0001647,2]
[393602446,1762842642167,-151.0,0.0001647,2]
[393602449,1762842642177,-158.30652294,0.0001647,2]
[393602451,1762842642187,-19565.9485946,0.0001647,2]
[393602453,1762842642199,-446.71543552,0.0001647,2]
[393602455,1762842642211,-350.0842972,0.0001647,2]
[393602755,1762842921617,276.5756327,0.0003287,120]
[393602763,1762843146401,440.0,0.00032877,120]
[393602764,1762843157191,-3238.80456655,0.00016242,2]
[393602765,1762843157218,-1274.03890483,0.00016274,2]
[393602766,1762843157253,-974.32305724,0.00016274,2]
[393602767,1762843160140,-300.0,0.00016367,2]
[393602768,1762843160168,-3486.96700036,0.00016368,2]
[393602769,1762843160203,-2426.07599928,0.00016368,2]
[393602770,1762843163241,-375.42755056,0.00016369,2]
[393602771,1762843163275,-387.60684679,0.00016369,2]
[393602772,1762843163304,-360.75171527,0.00016369,2]
[393602773,1762843163334,-239.66691402,0.00016369,2]
[393602774,1762843163407,-7273.10394672,0.0001637,2]
[393602776,1762843360228,5000.0,0.0001611,2]
[393602777,1762843383869,404.32507462,0.0001611,2]
[393602778,1762843459125,-160.0,0.00016272,2]
[393602779,1762843459152,-300.0,0.00016368,2]
[393602780,1762843459178,-300.0,0.00016368,2]
[393602781,1762843459206,-300.0,0.00016368,2]
[393602782,1762843459234,-1200.0,0.00016368,2]
[393602783,1762843459262,-300.0,0.00016368,2]
[393602784,1762843459280,-160.0,0.00016369,2]
[393602785,1762843459290,-300.0,0.00016369,2]
[393602786,1762843459301,-300.0,0.00016369,2]
[393602787,1762843459312,-300.0,0.00016369,2]
[393602788,1762843459327,-1200.0,0.00016369,2]
[393602789,1762843459337,-300.0,0.00016369,2]
[393602790,1762843459348,-4880.01,0.00016369,2]
[393602791,1762843459369,-10000.01,0.00016369,2]
[393602792,1762843459490,-1437.08312964,0.00016369,2]
[393602793,1762843459520,-500.0,0.00016369,2]
[393602794,1762843459553,-500.0,0.00016369,2]
[393602795,1762843459582,-500.0,0.00016369,2]
[393602796,1762843459624,-464.40001246,0.00016369,2]
[393602797,1762843459653,-444.39829898,0.00016369,2]
[393602798,1762843459684,-500.0,0.00016369,2]
[393602799,1762843459714,-500.0,0.00016369,2]
[393602800,1762843459732,-500.0,0.00016369,2]
[393602801,1762843459741,-500.0,0.00016369,2]
[393602802,1762843459751,-437.08312964,0.00016369,2]
[393602803,1762843459761,-62.91687036,0.00016369,2]
[393602804,1762843472314,2192.10394385,0.00016369,2]
[393602805,1762843475498,-10000.01,0.0001637,2]
[393602806,1762843475725,-10000.01,0.0001637,2]
[393602807,1762843475835,-10000.01,0.0001637,2]
[393602808,1762843475951,-10000.01,0.0001637,2]
[393602809,1762843476103,-10000.01,0.0001637,2]
[393602810,1762843476205,-10000.01,0.0001637,2]
[393602811,1762843476319,-10000.01,0.0001637,2]
[393602812,1762843476444,-10000.01,0.0001637,2]
[393602813,1762843476590,-10000.01,0.0001637,2]
[393602814,1762843476723,-10000.01,0.0001637,2]
[393602815,1762843481514,-10000.01,0.0001637,2]
[393602816,1762843481640,-10000.01,0.0001637,2]
[393602817,1762843481774,-10000.01,0.0001637,2]
[393602818,1762843481909,-10000.01,0.0001637,2]
[393602819,1762843482035,-10000.01,0.0001637,2]
[393602820,1762843482150,-10000.01,0.0001637,2]
[393602821,1762843482313,-10000.01,0.0001637,2]
[393602822,1762843482435,-10000.01,0.0001637,2]
[393602823,1762843482546,-10000.01,0.0001637,2]
[393602824,1762843482700,-10000.01,0.0001637,2]
[393602825,1762843494658,5000.0,0.00016369,2]
[393602826,1762843502291,300.0,0.00016369,2]
[393602827,1762843503011,1092.0,0.00016369,2]
[393602831,1762843788798,1000.0,0.00032,120]
[393602858,1762843832133,-500.0,0.00016165,2]
[393602866,1762843832198,-973.57,0.00016165,2]
[393602868,1762843832209,-1271.31381274,0.00016165,2]
[393602870,1762843832220,-1001.57515067,0.00016165,2]
[393602872,1762843832229,-185.17380989,0.00016169,2]
[393602874,1762843832238,-2248.36196207,0.00016172,2]
[393602876,1762843832247,-300.0,0.0001627,2]
[393602878,1762843832256,-6903.6392784,0.00016271,2]
[393602880,1762843832266,-21169.6570496,0.0001637,2]
[393602883,1762843832277,-251.25739324,0.0001637,2]
[393602919,1762843838060,-488.57536421,0.0001637,2]
[393602932,1762843838190,-15941.73843929,0.0001637,2]
[393602934,1762843838204,-21084.04781708,0.0001637,2]
[393602987,1762843846260,-69183.09081803,0.0001637,2]
[393602989,1762843846271,-1450.12090491,0.0001637,2]
[393602992,1762843846324,-4155.27195149,0.0001637,2]
[393603001,1762843846577,-2158.92021582,0.0001637,2]
[393603002,1762843846823,-2281.28905335,0.0001637,2]
[393603004,1762843993472,1235.36,0.00032876,120]
[393603006,1762844085109,695.22907,0.00013699,2]
[393603008,1762844567892,2248.36196207,0.00016007,2]
[393603009,1762844568769,3746.45896341,0.00015903,2]
[393603010,1762844657518,644.64,0.00031,120]
[393603014,1762844807087,169.3326208,7.823e-05,2]
[393603015,1762844870445,800.0,0.00016091,2]
[393603016,1762844870509,800.0,0.00016081,2]
[393603017,1762844870598,800.0,0.00016085,2]
[393603018,1762844870629,800.0,0.00016102,2]
[393603019,1762844870660,800.0,0.00016038,2]
[393603020,1762844870728,800.0,0.00016056,2]
[393603021,1762844870759,800.0,0.00016108,2]
[393603022,1762844870789,800.0,0.00016044,2]
[393603023,1762844870870,800.0,0.00016057,2]
[393603024,1762844872045,-264.15646662,0.00016135,2]
[393603025,1762844877605,-167.10015383,0.00016135,2]
[393603026,1762844908374,2172.3728334,0.00015242,2]
[393603029,1762844985665,-231.2677652,0.00016135,2]
[393603030,1762844988681,-137.47561435,0.00016135,2]
[393603031,1762844988702,-128.08240993,0.00016135,2]
[393603032,1762844991066,-261.66739399,0.00016135,2]
[393603033,1762844993445,-154.70446379,0.00016135,2]
[393603034,1762844995081,-258.31547562,0.00016135,2]
[393603035,1762844997583,-241.68452438,0.00016135,2]
[393603036,1762844999887,-165.22782471,0.00016135,2]
[393603037,1762845016041,-87.31790758,0.00016135,2]
[393603038,1762845016068,-87.07531973,0.00016147,2]
[393603039,1762845019363,-171.26738882,0.00016147,2]
[393603040,1762845020966,-141.65729145,0.00016147,2]
[393603041,1762845020992,-132.04716143,0.00016154,2]
[393603042,1762845023577,-183.04886967,0.00016154,2]
[393603043,1762845025210,-218.49357707,0.00016154,2]
[393603044,1762845027325,-266.41039183,0.00016154,2]
[393603045,1762845027357,-82.27471787,0.00016186,2]
[393603046,1762845029508,-154.30878658,0.00016186,2]
[393603067,1762845032302,-308.09929999,0.00016186,2]
[393603073,1762845032393,-255.31719556,0.00016186,2]
[393603074,1762845032403,-800.0,0.0001619,2]
[393603075,1762845032413,-244.94481487,0.00016216,2]
[393603078,1762845034683,-180.31,0.00016216,2]
[393603082,1762845038234,-6040.6843686,0.00016173,2]
[393603083,1762845038244,-374.74518513,0.00016216,2]
[393603084,1762845038254,-800.0,0.00016232,2]
[393603085,1762845038264,-800.0,0.00016256,2]
[393603086,1762845038274,-800.0,0.00016258,2]
[393603087,1762845038284,-300.0,0.00016269,2]
[393603088,1762845038293,-402.76946469,0.00016269,2]
[393603089,1762845038320,-797.23053531,0.00016269,2]
[393603090,1762845038330,-92.38946469,0.00016269,2]
[393603091,1762845038342,-89.08086901,0.00016269,2]
[393603092,1762845038351,-203.73355904,0.00016269,2]
[393603095,1762845040565,-3e-08,0.00016269,2]
[393603096,1762845040575,-9.73396796,0.00016269,2]
[393603097,1762845040584,-384.93333472,0.00016269,2]
[393603098,1762845040593,-4809.50216109,0.0001627,2]
[393603116,1762845043569,-453.0,0.0001627,2]
[393603130,1762845046691,-3855.80690544,0.0001627,2]
[393603132,1762845060627,-426.54357429,0.0001627,2]
[393603133,1762845062792,-265.99927634,0.00016269,2]
[393603134,1762845066898,-34.00072366,0.00016269,2]
[393603135,1762845066928,-300.69357695,0.0001627,2]
[393603136,1762845070341,-156.92089254,0.0001627,2]
[393603137,1762845075031,-291.12672364,0.0001627,2]
[393603138,1762845076113,3746.45896341,0.00015918,2]
[393603139,1762845076280,2248.36196207,0.00016091,2]
[393603140,1762845079499,-303.69434824,0.0001627,2]
[393603141,1762845082340,-168.04291389,0.0001627,2]
[393603142,1762845085050,-226.89941191,0.0001627,2]
[393603143,1762845087817,-383.18815883,0.0001627,2]
[393603144,1762845089747,-256.33483776,0.0001627,2]
[393603145,1762845102705,173.21729291,0.00015945,2]
[393603146,1762845103485,-165.27637697,0.00016269,2]
[393603147,1762845106679,-91.05846079,0.00016269,2]
[393603148,1762845106709,-116.07680956,0.0001627,2]
[393603149,1762845110006,-244.79015739,0.0001627,2]
[393603150,1762845113556,-193.57893469,0.0001627,2]
[393603151,1762845117024,-177.67458026,0.0001627,2]
[393603152,1762845118656,-300.0,0.00016269,2]
[393603153,1762845120371,-180.31,0.00016269,2]
[393603154,1762845122453,-136.89180468,0.00016269,2]
[393603155,1762845122481,-43.41819532,0.0001627,2]
[393603157,1762845180660,-286.80305457,0.00016269,2]
[393603158,1762845185912,-300.0,0.00016269,2]
[393603159,1762845185941,-0.84977062,0.00016269,2]
[393603160,1762845189780,-173.51723752,0.00016269,2]
[393603161,1762845192586,-196.88650681,0.00016269,2]
[393603162,1762845192615,-59.43475672,0.0001627,2]
[393603163,1762845195920,300.0,0.00016,2]
[393603164,1762845197737,-366.06087218,0.0001627,2]
[393603165,1762845200507,-190.63442376,0.0001627,2]
[393603166,1762845205494,-202.10826479,0.0001627,2]
[393603167,1762845209920,-300.0,0.0001627,2]
[393603168,1762845213037,-210.60206046,0.0001627,2]
[393603169,1762845225551,-299.0,0.0001627,2]
[393603170,1762845227759,-252.37889118,0.0001627,2]
[393603171,1762845229111,-4010.03461507,0.0001627,2]
[393603172,1762845229204,-10000.01,0.0001627,2]
[393603173,1762845229350,-10000.01,0.0001627,2]
[393603174,1762845229469,-10000.01,0.0001627,2]
[393603175,1762845229599,-10000.01,0.0001627,2]
[393603176,1762845229714,-10000.01,0.0001627,2]
[393603177,1762845229827,-10000.01,0.0001627,2]
[393603178,1762845229954,-10000.01,0.0001627,2]
[393603179,1762845230071,-10000.01,0.0001627,2]
[393603180,1762845230499,-312.77351553,0.0001627,2]
[393603181,1762845231775,-10000.01,0.0001627,2]
[393603182,1762845234858,-10000.01,0.0001627,2]
[393603183,1762845234968,-10000.01,0.0001627,2]
[393603184,1762845235154,-10000.01,0.0001627,2]
[393603185,1762845235215,-10000.01,0.0001627,2]
[393603186,1762845235338,-10000.01,0.0001627,2]
[393603187,1762845235464,-10000.01,0.0001627,2]
[393603188,1762845235587,-10000.01,0.0001627,2]
[393603189,1762845235759,-10000.01,0.0001627,2]
[393603190,1762845235897,-10000.01,0.0001627,2]
[393603191,1762845268013,186.74315708,0.00015476,2]
[393603192,1762845269823,336.13768275,0.00015476,2]
[393603193,1762845271114,-383.71762329,0.00016172,2]
[393603194,1762845275002,-306.42106531,0.00016172,2]
[393603195,1762845276767,-249.81812272,0.00016172,2]
[393603196,1762845278924,-218.14480684,0.00016172,2]
[393603197,1762845281838,-386.24495282,0.00016172,2]
[393603198,1762845283493,-311.03580477,0.00016172,2]
[393603199,1762845285453,-151.0,0.00016172,2]
[393603200,1762845287074,-208.28717155,0.00016172,2]
[393603201,1762845290303,-399.71080467,0.00016172,2]
[393603202,1762845292477,-163.97415548,0.00016172,2]
[393603203,1762845294136,-181.15232409,0.00016172,2]
[393603204,1762845295727,-154.87352043,0.00016172,2]
[393603205,1762845299163,-185.76817319,0.00016172,2]
[393603206,1762845302378,-329.37039795,0.00016172,2]
[393603207,1762845307857,-187.22648447,0.00016172,2]
[393603208,1762845310740,-300.0,0.00016172,2]
[393603209,1762845314263,-226.5880084,0.00016172,2]
[393603210,1762845317624,-197.99063882,0.00016172,2]
[393603211,1762845320513,-243.31478545,0.00016172,2]
[393603212,1762845322158,-329.66895012,0.00016172,2]
[393603213,1762845324484,-352.30095932,0.00016172,2]
[393603214,1762845326885,-161.20593704,0.00016172,2]
[393603215,1762845328607,-155.26839453,0.00016172,2]
[393603216,1762845330341,-201.59698138,0.00016172,2]
[393603217,1762845332807,-212.09584388,0.00016172,2]
[393603218,1762845332833,-109.2782374,0.00016268,2]
[393603219,1762845334711,-190.7217626,0.00016268,2]
[393603220,1762845334734,-58.01672671,0.00016268,2]
[393603221,1762845338119,-241.98327329,0.00016268,2]
[393603222,1762845338147,-94.09335881,0.00016269,2]
[393603223,1762845340333,-210.63514649,0.00016269,2]
[393603224,1762845342099,-8.04501023,0.00016269,2]
[393603225,1762845342124,-238.58966849,0.00016269,2]
[393603226,1762845343771,-261.41033151,0.00016269,2]
[393603227,1762845343796,-11.39376259,0.00016269,2]
[393603228,1762845347109,-362.06975518,0.00016269,2]
[393603229,1762845350959,-126.53648223,0.00016269,2]
[393603230,1762845350984,-122.32170385,0.00016269,2]
[393603231,1762845353149,-186.68139984,0.00016269,2]
[393603232,1762845356421,-195.64940585,0.00016269,2]
[393603233,1762845356445,-209.14531167,0.00016269,2]
[393603234,1762845359497,-244.72656509,0.00016269,2]
[393603235,1762845362806,-158.4275656,0.00016269,2]
[393603236,1762845365247,-141.5724344,0.00016269,2]
[393603237,1762845365273,-46.12812324,0.00016269,2]
[393603238,1762845365300,-11.74483218,0.00016269,2]
[393603239,1762845366948,-223.08686175,0.00016269,2]
[393603240,1762845369333,-265.16830607,0.00016269,2]
[393603241,1762845369362,-115.3328532,0.00016269,2]
[393603242,1762845371293,-87.03220241,0.00016269,2]
[393603243,1762845371325,-83.06185324,0.0001627,2]
[393603244,1762845373555,-255.27343491,0.0001627,2]
[393603245,1762845377313,-300.0,0.0001627,2]
[393603246,1762845380047,-229.22381046,0.0001627,2]
[393603247,1762845390589,-581.9646652,0.0001627,2]
[393603248,1762845392247,-158.86447604,0.0001627,2]
[393603249,1762845405693,-173.38392685,0.0001627,2]
[393603250,1762845408527,-288.26775103,0.0001627,2]
[393603251,1762845410196,-285.98563303,0.0001627,2]
[393603252,1762845411946,-318.45317894,0.0001627,2]
[393603253,1762845413879,314.16938242,0.00015476,2]
[393603254,1762845417651,-227.76804493,0.0001627,2]
[393603255,1762845421740,-370.87934228,0.0001627,2]
[393603256,1762845424151,-272.40966891,0.00016269,2]
[393603257,1762845429263,-27.59033109,0.00016269,2]
[393603258,1762845429296,-291.58790921,0.0001627,2]
[393603259,1762845433364,-331.69515529,0.0001627,2]
[393603260,1762845439641,-377.52785739,0.0001627,2]
[393603261,1762845442373,-326.56991812,0.00016269,2]
[393603262,1762845445214,-37.64850822,0.00016269,2]
[393603263,1762845445242,-339.798428,0.0001627,2]
[393603264,1762845447947,-291.34857518,0.0001627,2]
[393603265,1762845452491,-300.0,0.0001627,2]
[393603266,1762845454339,-527.65142482,0.0001627,2]
[393603267,1762845457686,-160.0,0.0001627,2]
[393603268,1762845459422,-231.5403477,0.0001627,2]
[393603269,1762845461968,-277.96177954,0.0001627,2]
[393603270,1762845464655,-237.69140126,0.0001627,2]
[393603271,1762845467954,-300.0,0.0001627,2]
[393603272,1762845470419,-181.9297246,0.00016269,2]
[393603273,1762845473518,-239.14571775,0.00016269,2]
[393603274,1762845475122,-16.61595891,0.00016269,2]
[393603275,1762845475150,-192.03833316,0.00016269,2]
[393603276,1762845478524,-166.77323784,0.00016269,2]
[393603277,1762845480670,-266.72851045,0.00016269,2]
[393603278,1762845480694,-8.82761954,0.00016269,2]
[393603279,1762845495630,-300.0,0.00016269,2]
[393603280,1762845495658,-120.70872757,0.00016269,2]
[393603281,1762845498515,-273.32328901,0.00016269,2]
[393603282,1762845503328,-97.14036388,0.00016269,2]
[393603283,1762845503357,-84.03657227,0.0001627,2]
[393603284,1762845506731,-189.38729653,0.00016269,2]
[393603285,1762845508288,-219.4387685,0.00016269,2]
[393603286,1762845512815,-151.0,0.00016171,2]
[393603287,1762845514485,-248.04751013,0.00016171,2]
[393603288,1762845518415,-437.71413723,0.00016171,2]
[393603289,1762845520457,-182.1084991,0.00016171,2]
[393603291,1762845540487,600.0,0.0001609,2]
[393603292,1762845540581,-275.09818743,0.00016171,2]
[393603293,1762845543427,-157.67154271,0.00016171,2]
[393603294,1762845545097,-185.69133198,0.00016171,2]
[393603295,1762845547321,-187.23727241,0.00016171,2]
[393603296,1762845571199,-213.3638526,0.00016171,2]
[393603297,1762845574126,-178.29094354,0.00016171,2]
[393603298,1762845585569,600.551876,0.00015278,2]
[393603299,1762845589748,1715.841376,0.00016028,2]
[393603300,1762845590082,2248.36196207,0.00015984,2]
[393603301,1762845751064,5145.15100859,0.000161,2]